bitfinex/quotes_ETHUSD_20251125
["timestamp","ask_amount","ask_price","bid_price","bid_amount"]
[1764043556092,0.926,2921.0,2920.9,4.04610631]
[1764043559405,0.458,2921.0,2920.9,4.04610631]
[1764043559797,0.458,2921.0,2920.9,3.82910631]
[1764043559993,0.926,2921.0,2920.9,3.82910631]
[1764043560197,0.926,2921.0,2920.9,3.42360231]
[1764043560433,0.926,2921.0,2920.7,5.273174]
[1764043560699,0.458,2920.8,2920.5,4.14966467]
[1764043560899,0.458,2920.6,2920.3,3.42427249]
[1764043561201,0.468,2920.8,2920.3,6.84857821]
[1764043561569,0.468,2920.8,2920.4,0.405504]
[1764043562194,0.458,2920.5,2920.4,0.405504]
[1764043562790,0.1827,2920.9,2920.4,6.108378]
[1764043563004,0.468,2921.3,2920.8,0.4297]
[1764043563301,0.468,2921.3,2920.8,0.405504]
[1764043563891,0.458,2920.9,2920.8,0.405504]
[1764043564082,0.458,2920.9,2920.7,0.622504]
[1764043565692,0.468,2921.3,2920.9,0.405504]
[1764043566291,0.002,2921.2,2920.9,0.405504]
[1764043566506,0.458,2921.0,2920.9,0.405504]
[1764043566876,0.47,2921.2,2920.9,0.835204]
[1764043567094,0.458,2921.0,2920.9,0.405504]
[1764043567813,0.458,2921.0,2920.9,3.82910631]
[1764043568883,0.47,2921.2,2920.9,3.82910631]
[1764043569083,0.47,2921.2,2920.9,7.25270862]
[1764043569983,0.458,2921.0,2920.9,3.82910631]
[1764043571489,0.47,2921.2,2920.9,7.25270862]
[1764043572121,0.458,2921.0,2920.9,4.29910631]
[1764043572488,0.002,2921.2,2920.9,11.77942207]
[1764043572783,0.002,2921.2,2921.1,4.05671345]
[1764043573416,0.928,2921.2,2921.1,4.05671345]
[1764043574520,0.928,2921.2,2921.1,7.48008135]
[1764043576712,0.928,2921.2,2921.1,4.05671345]
[1764043576912,0.928,2921.2,2920.8,4.05671345]
[1764043577222,0.928,2921.2,2920.6,0.928]
[1764043577223,0.6407,2920.9,2920.6,0.928]
[1764043577390,0.1827,2920.9,2920.2,3.42439527]
[1764043577589,0.1827,2920.9,2920.3,4.05671345]
[1764043577590,0.468,2920.8,2920.3,4.05671345]
[1764043577986,0.458,2920.4,2920.3,4.05671345]
[1764043578419,0.926,2920.4,2920.0,4.05671345]
[1764043578617,0.458,2920.1,2920.0,4.05671345]
[1764043578818,0.468,2920.7,2920.0,10.90602851]
[1764043578993,0.468,2920.7,2920.5,4.05671345]
[1764043579190,0.468,2920.7,2920.3,4.05671345]
[1764043579593,0.458,2920.4,2920.3,4.05671345]
[1764043580028,0.9374,2920.4,2920.3,4.05671345]
[1764043580529,0.9374,2920.4,2920.0,3.64163982]
[1764043580706,0.4794,2920.3,2920.0,3.64163982]
[1764043582495,0.1827,2920.9,2920.0,7.06629735]
[1764043582693,0.4794,2920.5,2920.1,0.405504]
[1764043583330,0.4794,2920.5,2920.2,3.42442298]
[1764043583493,0.4794,2920.5,2920.1,0.405504]
[1764043583695,0.4794,2920.5,2920.1,3.83003645]
[1764043583696,0.4988,2920.2,2920.1,3.83003645]
[1764043584628,0.9782,2920.2,2920.0,0.217]
[1764043584804,0.4066,2920.1,2920.0,0.217]
[1764043586110,0.4066,2920.1,2920.0,3.64165753]
[1764043586510,0.4794,2920.8,2920.1,0.405504]
[1764043586714,0.4794,2920.8,2920.1,1.264904]
[1764043587643,0.4794,2920.8,2920.1,0.835204]
[1764043588343,0.4794,2920.8,2920.2,3.42442298]
[1764043589240,0.4988,2920.3,2920.2,3.42442298]
[1764043589446,0.6621,2920.9,2920.2,6.84884596]
[1764043589614,0.6621,2920.9,2920.2,7.27854596]
[1764043589939,0.6621,2920.9,2920.3,0.405504]
[1764043590154,0.6621,2920.9,2920.4,0.217]
[1764043590467,0.002,2921.0,2920.5,3.42407122]
[1764043590642,0.002,2921.0,2920.5,6.84814244]
[1764043590813,0.4814,2921.0,2920.5,6.84814244]
[1764043591442,0.4814,2921.0,2920.5,3.42407122]
[1764043591443,0.187,2920.9,2920.5,3.42407122]
[1764043592147,0.6664,2920.9,2920.5,3.42407122]
[1764043592331,0.4988,2920.6,2920.3,7.25411544]
[1764043592536,0.4988,2920.6,2920.4,0.217]
[1764043592846,0.187,2920.9,2920.4,0.217]
[1764043593011,0.9782,2920.5,2920.4,0.217]
[1764043593210,0.4988,2920.5,2920.4,0.217]
[1764043593412,0.4794,2920.8,2920.4,0.4297]
[1764043594044,0.4794,2920.8,2920.3,7.06561144]
[1764043594253,0.4794,2920.8,2920.2,0.217]
[1764043594459,0.4794,2920.8,2920.2,3.64138121]
[1764043595157,0.4988,2920.3,2920.2,3.42438121]
[1764043595369,0.4988,2920.3,2920.2,0.217]
[1764043595567,0.4988,2920.3,2920.0,4.12105112]
[1764043595750,0.4794,2920.3,2920.0,4.12105112]
[1764043595925,0.4988,2920.1,2920.0,4.04715512]
[1764043596321,0.4988,2920.1,2920.0,3.83015512]
[1764043596659,0.4988,2920.1,2920.0,3.64165112]
[1764043597059,0.4794,2920.3,2920.0,3.64165112]
[1764043598231,0.4988,2920.1,2920.0,3.64165112]
[1764043599058,0.4988,2920.1,2919.9,3.9235669]
[1764043599226,0.4988,2920.1,2919.9,3.6417669]
[1764043600577,0.4794,2920.3,2920.0,4.48872688]
[1764043600763,0.002,2920.3,2920.2,4.05902688]
[1764043601355,0.002,2920.3,2920.2,4.48872688]
[1764043602172,0.002,2920.6,2920.2,8.95325776]
[1764043602465,0.002,2920.6,2920.5,5.21432099]
[1764043602665,0.002,2920.6,2920.5,9.26089621]
[1764043603076,0.002,2920.6,2920.5,10.35899621]
[1764043603963,0.002,2920.6,2920.5,9.92929621]
[1764043604556,0.002,2920.6,2920.5,10.35899621]
[1764043604958,0.002,2920.6,2920.5,9.71229621]
[1764043605138,0.002,2920.6,2920.5,14.41802309]
[1764043605539,0.002,2920.6,2920.5,10.35899621]
[1764043605939,0.002,2920.6,2920.5,14.41802309]
[1764043606261,0.002,2920.6,2920.5,10.14199621]
[1764043606460,0.002,2920.6,2920.5,9.92929621]
[1764043607066,0.002,2920.6,2920.5,9.71229621]
[1764043607270,0.002,2920.6,2920.5,9.92929621]
[1764043607978,0.002,2920.6,2920.5,10.35899621]
[1764043608753,0.002,2920.6,2920.5,14.41802309]
[1764043609248,0.002,2920.6,2920.5,14.20102309]
[1764043609482,0.002,2920.6,2920.5,14.41802309]
[1764043614158,0.002,2920.6,2920.5,9.92929621]
[1764043614591,0.002,2920.6,2920.5,9.71229621]
[1764043614754,0.002,2920.6,2920.5,9.92929621]
[1764043614951,0.002,2920.6,2920.5,14.41802309]
[1764043615460,0.002,2920.6,2920.5,14.51802309]
[1764043618399,0.002,2920.6,2920.5,14.41802309]
[1764043618567,0.002,2920.6,2920.5,10.45647638]
[1764043618766,0.002,2920.6,2920.5,10.35647638]
[1764043618966,0.002,2920.6,2920.5,10.13947638]
[1764043619164,0.002,2920.6,2920.5,9.92677638]
[1764043619401,0.002,2920.6,2920.5,10.45647638]
[1764043620300,0.002,2920.6,2920.5,10.23947638]
[1764043620527,0.002,2920.6,2920.5,10.45647638]
[1764043621979,0.002,2920.9,2920.6,1.13109811]
[1764043622187,0.002,2921.2,2920.6,1.13109811]
[1764043622188,0.73171894,2922.7,2921.2,0.405504]
[1764043622369,0.4891,2921.9,2921.2,9.25755587]
[1764043622569,0.4891,2921.9,2921.2,9.98927481]
[1764043623008,0.4891,2921.9,2921.2,10.41897481]
[1764043623312,0.1814,2923.1,2921.6,0.405504]
[1764043623515,0.4891,2923.0,2922.7,4.05650705]
[1764043623732,0.4891,2923.0,2922.7,0.217]
[1764043624037,0.1852,2923.9,2922.9,4.05650705]
[1764043624175,0.4891,2923.4,2923.0,0.72559411]
[1764043624380,0.4992,2923.1,2923.0,0.72559411]
[1764043624582,0.4992,2923.1,2922.9,3.82673671]
[1764043624825,0.1852,2923.9,2922.9,3.82673671]
[1764043624826,0.8762,2923.0,2922.9,4.55233082]
[1764043625185,0.8762,2923.0,2922.9,0.72559411]
[1764043625583,0.3871,2923.0,2922.9,4.78210116]
[1764043625786,0.8762,2923.0,2922.9,4.78210116]
[1764043626388,0.8762,2923.0,2922.9,8.20336086]
[1764043626609,0.8762,2923.0,2922.9,4.14685381]
[1764043627185,0.3871,2923.0,2922.9,4.14685381]
[1764043627386,0.3871,2923.0,2922.9,4.55235781]
[1764043627584,0.8762,2923.0,2922.8,0.4891]
[1764043627882,0.6833,2922.9,2922.8,4.63602206]
[1764043628117,1.1724,2922.9,2922.8,4.63602206]
[1764043628685,1.1724,2922.9,2922.8,0.4891]
[1764043628884,1.1724,2922.9,2921.7,5.24722422]
[1764043629081,0.3882,2922.5,2922.0,0.72559411]
[1764043629611,0.3882,2922.5,2922.1,0.894604]
[1764043629612,0.4891,2922.4,2922.1,0.894604]
[1764043630341,0.4992,2922.2,2922.1,0.894604]
[1764043630486,0.4992,2922.2,2921.8,7.06209548]
[1764043630487,0.4992,2922.2,2921.8,6.84509548]
[1764043630689,0.6844,2921.9,2921.8,1.13109811]
[1764043631096,1.1735,2921.9,2921.8,1.81549811]
[1764043631318,1.1735,2921.9,2921.7,3.42266488]
[1764043631490,0.8762,2921.8,2921.1,3.4232999]
[1764043631690,0.4981,2921.7,2921.4,1.02892479]
[1764043631909,0.3882,2921.5,2921.2,6.84650142]
[1764043632105,0.1852,2921.9,2921.2,10.26975213]
[1764043632446,3.60650984,2922.9,2921.2,10.26975213]
[1764043632447,0.1852,2922.1,2921.3,6.00704966]
[1764043632647,0.1852,2922.1,2921.6,0.405504]
[1764043632812,0.1852,2922.1,2921.6,1.16532593]
[1764043633007,0.1852,2922.9,2921.6,1.16532593]
[1764043633212,0.4891,2922.8,2921.8,0.405504]
[1764043634334,0.4891,2922.8,2921.7,0.405504]
[1764043634710,0.4891,2922.8,2921.8,10.26764322]
[1764043636038,0.4891,2922.8,2921.8,6.84509548]
[1764043636227,0.4992,2921.9,2921.8,4.55364585]
[1764043636434,0.6844,2921.9,2921.8,4.55364585]
[1764043636633,1.1735,2921.9,2921.8,4.55364585]
[1764043638248,1.1735,2921.9,2921.3,0.001]
[1764043638432,0.4992,2921.4,2921.3,0.001]
[1764043638744,0.6743,2921.9,2921.3,6.84726706]
[1764043638914,0.4891,2921.8,2921.3,6.84726706]
[1764043639340,0.4891,2921.8,2921.3,0.001]
[1764043639656,0.4992,2921.4,2921.3,0.001]
[1764043640676,0.4565,2921.7,2921.3,0.001]
[1764043640836,0.4565,2921.7,2921.3,0.4307]
[1764043641580,0.1852,2921.9,2921.4,6.84603272]
[1764043641875,0.4565,2921.8,2921.4,6.84603272]
[1764043642962,0.4988,2921.5,2921.4,3.42301636]
[1764043643156,0.4988,2921.5,2921.3,3.42412972]
[1764043643157,0.4988,2921.5,2921.3,3.42410824]
[1764043643460,0.1852,2921.9,2921.3,0.001]
[1764043643461,0.8763,2921.4,2921.3,0.001]
[1764043650336,0.4198,2921.4,2921.3,0.001]
[1764043650755,0.4565,2921.6,2921.3,0.001]
[1764043653357,0.4565,2921.6,2921.3,6.84726706]
[1764043653561,0.1852,2921.9,2921.3,6.84726706]
[1764043653562,0.6417,2921.9,2921.3,6.84726706]
[1764043653876,0.6417,2921.9,2921.3,10.27040059]
[1764043654876,0.6417,2921.9,2921.4,0.405504]
[1764043655176,0.6494,2922.1,2921.4,0.405504]
[1764043655342,0.6494,2922.1,2921.6,0.405504]
[1764043655534,0.002,2921.9,2921.6,0.405504]
[1764043656070,0.002,2921.9,2921.5,10.26869757]
[1764043656071,0.002,2921.9,2921.8,0.835204]
[1764043657567,0.002,2921.9,2921.8,4.25775174]
[1764043657956,1.1502,2921.9,2921.3,0.001]
[1764043658140,0.6514,2921.9,2921.5,0.405504]
[1764043658340,0.4988,2921.6,2921.5,0.405504]
[1764043658864,0.1949,2921.9,2921.5,0.405504]
[1764043658865,0.002,2921.9,2921.5,0.835204]
[1764043659066,0.002,2921.9,2921.8,0.4297]
[1764043659565,0.002,2921.9,2921.8,4.98334585]
[1764043660371,0.002,2921.9,2921.8,4.55364585]
[1764043660737,0.002,2921.9,2921.8,4.98334585]
[1764043664275,0.002,2921.9,2921.8,5.41304585]
[1764043664577,0.002,2921.9,2921.8,5.44727132]
[1764043664952,0.002,2921.9,2921.8,5.41304585]
[1764043666881,0.5008,2921.9,2921.8,4.55364585]
[1764043667184,0.9573,2921.9,2921.8,4.55364585]
[1764043667391,0.5008,2921.9,2921.8,4.55364585]
[1764043667543,1.1502,2921.9,2921.8,4.14814185]
[1764043668594,1.1502,2921.9,2921.8,4.55364585]
[1764043669343,0.6937,2921.9,2921.8,4.55364585]
[1764043669846,0.5008,2921.9,2921.8,4.55364585]
[1764043670463,0.002,2921.9,2921.8,4.55364585]
[1764043670843,0.4566,2921.9,2921.8,4.55364585]
[1764043671268,0.002,2921.9,2921.8,4.98334585]
[1764043671667,0.4566,2921.9,2921.8,4.55364585]
[1764043672959,0.002,2921.9,2921.8,4.55364585]
[1764043674376,1.125,2921.9,2921.6,0.405504]
[1764043674676,0.6704,2921.9,2921.6,0.405504]
[1764043674860,0.002,2921.9,2921.7,6.84532976]
[1764043675875,0.002,2921.9,2921.8,0.405504]
[1764043676081,0.17669833,2922.1,2921.8,0.35399358]
[1764043676270,0.64669833,2922.1,2921.8,0.35399358]
[1764043678164,0.002,2922.2,2922.0,0.4514]
[1764043678776,0.002,2922.2,2922.1,0.405504]
[1764043679277,0.468,2922.2,2922.0,0.405504]
[1764043680606,0.468,2922.2,2922.1,3.82770036]
[1764043681883,0.002,2922.2,2922.1,4.27910036]
[1764043683388,0.002,2922.2,2922.1,4.35270036]
[1764043683788,0.468,2922.2,2922.1,3.82770036]
[1764043683990,0.9209,2922.2,2922.1,3.82770036]
[1764043684360,0.9209,2922.2,2922.1,3.42219636]
[1764043685263,0.9209,2922.2,2921.9,1.13109811]
[1764043685463,0.4372,2922.1,2921.9,1.13109811]
[1764043685967,0.4372,2922.1,2921.8,1.13109811]
[1764043686169,0.4375,2921.9,2921.8,1.13109811]
[1764043686371,0.6197,2921.9,2921.7,3.42266488]
[1764043686688,0.9183,2921.8,2921.7,3.42266488]
[1764043687190,0.9183,2921.8,2921.6,0.72559411]
[1764043687389,0.8907,2921.7,2921.6,0.72559411]
[1764043688132,0.8907,2921.7,2921.5,3.42289919]
[1764043688297,0.918,2921.6,2921.5,3.42289919]
[1764043688480,0.4651,2921.6,2921.5,3.42289919]
[1764043688693,0.4651,2921.6,2921.5,7.47802264]
[1764043690004,0.918,2921.6,2921.5,7.47802264]
[1764043690428,0.4651,2921.6,2921.5,7.47802264]
[1764043690709,0.4651,2921.6,2921.5,7.47902264]
[1764043691211,0.1822,2921.9,2921.5,10.90192183]
[1764043691504,0.4529,2921.8,2921.7,4.05512345]
[1764043692024,0.466,2921.8,2921.7,4.05512345]
[1764043692190,0.1822,2921.9,2921.7,4.05512345]
[1764043692585,0.466,2921.8,2921.7,4.05512345]
[1764043693190,0.466,2921.8,2921.6,4.05512345]
[1764043693191,0.9189,2921.8,2921.6,4.05512345]
[1764043693532,0.1822,2921.9,2921.6,7.47781516]
[1764043693689,0.6351,2921.9,2921.8,4.05512345]
[1764043694404,1.1011,2921.9,2921.8,4.05512345]
[1764043695718,1.1011,2921.9,2921.8,7.47767119]
[1764043698898,1.1011,2921.9,2921.8,4.05512345]
[1764043699221,1.1011,2921.9,2921.8,7.47767119]
[1764043699844,1.1011,2921.9,2921.5,0.001]
[1764043700132,0.4708,2921.6,2921.5,0.001]
[1764043700733,0.9297,2921.6,2921.5,3.42387959]
[1764043700905,0.4708,2921.6,2921.5,3.42387959]
[1764043701107,0.1822,2921.9,2921.5,6.84677878]
[1764043701108,0.4589,2921.8,2921.5,6.84677878]
[1764043701436,0.4589,2921.8,2921.7,4.05512345]
[1764043701931,0.9297,2921.8,2921.7,4.05512345]
[1764043702819,0.9297,2921.8,2921.7,7.47778833]
[1764043703318,0.1822,2921.9,2921.7,10.90045321]
[1764043703495,0.9297,2921.8,2921.7,7.47778833]
[1764043704393,0.4708,2921.8,2921.7,7.47778833]
[1764043704622,0.9297,2921.8,2921.7,7.47778833]
[1764043707351,0.4589,2922.1,2921.7,10.90045321]
[1764043707553,0.6539,2922.1,2921.7,10.90045321]
[1764043707739,0.4589,2922.0,2921.7,10.90045321]
[1764043707941,0.4708,2921.8,2921.7,7.47778833]
[1764043708852,0.9297,2921.8,2921.7,7.47778833]
[1764043709051,0.9297,2921.8,2921.6,3.42372354]
[1764043709208,0.8728,2921.7,2921.6,3.42372354]
[1764043711554,0.197,2922.1,2921.6,3.87512354]
[1764043711720,0.6559,2922.1,2921.7,4.05512345]
[1764043712124,0.4708,2921.8,2921.7,4.05512345]
[1764043712566,0.197,2922.1,2921.7,4.50652345]
[1764043712749,0.6559,2922.1,2921.9,4.05512345]
[1764043713234,0.4708,2922.0,2921.9,4.05512345]
[1764043713436,0.9297,2922.0,2921.8,3.42248199]
[1764043713971,0.4139,2921.9,2921.8,3.42248199]
[1764043715253,0.8728,2921.9,2921.8,3.42248199]
[1764043716160,0.4139,2921.9,2921.8,3.42248199]
[1764043716522,0.197,2922.1,2921.8,6.84502973]
[1764043716730,0.6559,2922.1,2921.9,4.05512345]
[1764043716950,0.6559,2922.1,2921.8,3.42248199]
[1764043716951,0.4708,2921.9,2921.8,3.42248199]
[1764043718059,0.9297,2921.9,2921.8,3.42248199]
[1764043718650,0.4708,2921.9,2921.8,3.42248199]
[1764043721164,0.197,2922.1,2921.8,6.84502973]
[1764043721363,0.002,2922.1,2922.0,4.05512345]
[1764043721740,0.4728,2922.1,2922.0,4.05512345]
[1764043722157,0.002,2922.1,2922.0,4.05512345]
[1764043722466,0.002,2922.1,2922.0,4.50652345]
[1764043722647,0.002,2922.1,2922.0,7.47743693]
[1764043723670,0.002,2922.1,2922.0,7.92883693]
[1764043724400,0.002,2922.1,2922.0,8.38023693]
[1764043724609,0.002,2922.1,2922.0,7.92883693]
[1764043725159,0.9317,2922.1,2922.0,7.47743693]
[1764043728889,0.002,2922.1,2922.0,7.92883693]
[1764043729481,0.002,2922.1,2922.0,8.33434093]
[1764043730074,0.002,2922.1,2922.0,8.79324093]
[1764043730491,0.4946,2922.1,2922.0,7.93633693]
[1764043730797,0.9924,2922.1,2922.0,7.47743693]
[1764043733075,0.9924,2922.1,2922.0,8.78574093]
[1764043733076,0.002,2922.1,2922.0,8.78574093]
[1764043733393,0.9924,2922.1,2922.0,7.47743693]
[1764043734390,0.4946,2922.1,2922.0,7.47743693]
[1764043734596,0.002,2922.1,2922.0,7.92883693]
[1764043734971,0.002,2922.1,2922.0,7.47743693]
[1764043735171,0.4946,2922.1,2922.0,7.47743693]
[1764043735701,0.002,2922.1,2922.0,7.92883693]
[1764043737881,0.002,2922.1,2922.0,7.47743693]
[1764043738077,0.002,2922.1,2922.0,7.92883693]
[1764043738477,0.002,2922.1,2922.0,8.33434093]
[1764043738683,0.002,2922.1,2922.0,8.78574093]
[1764043738921,0.002,2922.1,2922.0,8.96784093]
[1764043739102,0.002,2922.1,2922.0,8.51644093]
[1764043739419,0.002,2922.1,2922.0,8.06504093]
[1764043739624,0.4688,2922.1,2922.0,8.06504093]
[1764043740614,0.956,2922.1,2921.9,3.42237163]
[1764043740912,0.393,2922.0,2921.9,3.42237163]
[1764043741120,0.8802,2922.0,2921.9,3.42237163]
[1764043741323,0.002,2922.1,2921.9,10.89896779]
[1764043741687,0.4668,2922.0,2921.9,3.42237163]
[1764043741883,0.002,2922.1,2922.0,0.856904]
[1764043742096,0.002,2922.1,2922.0,4.91106955]
[1764043742304,0.002,2922.1,2922.0,5.36246955]
[1764043742620,0.002,2922.1,2922.0,8.78478303]
[1764043743184,0.002,2922.1,2922.0,8.33338303]
[1764043744333,0.002,2922.1,2922.0,9.72737714]
[1764043744715,0.002,2922.1,2922.0,10.21457714]
[1764043745237,0.002,2922.1,2922.0,10.31457714]
[1764043745546,0.002,2922.2,2922.1,1.13109811]
[1764043745704,10.15,2923.8,2922.2,0.405504]
[1764043745904,0.4872,2924.0,2923.5,4.05416555]
[1764043746102,0.4872,2923.8,2923.3,4.05416555]
[1764043746415,0.4668,2923.4,2923.3,7.47495712]
[1764043747112,0.217,2924.2,2923.3,14.76794026]
[1764043747430,0.6724,2923.9,2923.3,14.76794026]
[1764043748027,0.1852,2923.9,2923.3,14.76794026]
[1764043748194,0.4872,2923.8,2923.3,14.76794026]
[1764043748598,0.4668,2923.4,2923.3,7.47495712]
[1764043749104,0.954,2923.4,2923.3,3.42079157]
[1764043749499,0.4668,2923.4,2923.3,3.42079157]
[1764043750307,0.4872,2923.8,2923.3,14.76794026]
[1764043750924,0.1852,2923.9,2923.3,15.21934026]
[1764043751147,0.6724,2923.9,2923.3,10.71377471]
[1764043751298,0.4668,2923.4,2923.3,3.82629557]
[1764043751747,0.4872,2923.7,2923.3,11.11927871]
[1764043752352,0.1852,2923.9,2923.3,11.11927871]
[1764043752829,0.1852,2923.9,2923.4,4.05416555]
[1764043753632,0.6724,2923.9,2923.4,4.05416555]
[1764043754808,0.6724,2923.9,2923.5,6.8411151]
[1764043755326,0.1852,2923.9,2923.5,6.8411151]
[1764043755516,0.4872,2923.8,2923.5,6.8411151]
[1764043756739,0.4668,2923.6,2923.5,3.42055755]
[1764043756916,0.1852,2923.9,2923.5,0.405504]
[1764043757124,0.1852,2923.9,2923.5,4.91106955]
[1764043758141,0.6724,2923.9,2923.5,4.91106955]
[1764043758826,0.1852,2923.9,2923.5,4.91106955]
[1764043759025,0.4872,2924.1,2923.6,6.8408811]
[1764043759236,0.4872,2924.1,2923.6,10.26132165]
[1764043760150,0.217,2924.2,2923.6,10.26132165]
[1764043760321,0.217,2924.2,2923.6,10.71272165]
[1764043760844,0.4551,2924.3,2923.9,0.72559411]
[1764043761047,0.4551,2924.3,2924.0,6.83994528]
[1764043761514,0.4989,2924.1,2924.0,3.41997264]
[1764043763547,0.1875,2924.8,2924.1,0.405504]
[1764043763850,0.4551,2924.6,2924.3,4.05416555]
[1764043764017,0.4989,2924.2,2924.0,6.83994528]
[1764043764215,0.3908,2924.1,2924.0,3.41997264]
[1764043764614,0.8459,2924.1,2924.0,3.41997264]
[1764043765117,0.8479,2924.1,2923.8,7.97151127]
[1764043765351,0.9529,2924.0,2923.8,7.97151127]
[1764043765740,0.3919,2923.9,2923.8,4.55130469]
[1764043766323,0.002,2924.1,2923.8,8.42291127]
[1764043766522,0.002,2924.1,2924.0,4.50556555]
[1764043766724,0.002,2924.1,2924.0,4.91106955]
[1764043766946,0.002,2924.1,2924.0,5.36246955]
[1764043767147,0.002,2924.1,2924.0,8.33104219]
[1764043767942,0.002,2924.1,2924.0,8.78244219]
[1764043768136,0.002,2924.1,2924.0,8.33104219]
[1764043769256,0.002,2924.1,2924.0,8.78244219]
[1764043772161,0.5009,2924.1,2924.0,4.04247664]
[1764043772724,0.002,2924.1,2924.0,4.04247664]
[1764043774761,0.956,2924.1,2924.0,3.41997264]
[1764043775462,0.5009,2924.1,2923.9,6.84017234]
[1764043776358,0.002,2924.1,2923.9,6.84017234]
[1764043776677,0.002,2924.1,2924.0,0.405504]
[1764043777062,0.002,2924.1,2924.0,4.45966955]
[1764043777548,0.002,2924.1,2924.0,8.33104219]
[1764043778555,0.002,2924.1,2924.0,8.78244219]
[1764043779141,0.002,2924.1,2924.0,9.5080363]
[1764043780037,0.4071,2924.8,2924.2,0.405504]
[1764043780250,0.4071,2924.8,2924.5,0.72559411]
[1764043780734,0.4989,2924.6,2924.2,1.34809811]
[1764043780939,0.4978,2924.3,2924.2,1.34809811]
[1764043781548,0.4978,2924.3,2924.2,4.76783684]
[1764043783478,0.9529,2924.3,2924.2,4.14533284]
[1764043784565,0.4978,2924.3,2924.2,4.14533284]
[1764043785354,0.9529,2924.3,2924.2,4.14533284]
[1764043785878,0.4978,2924.3,2924.2,4.55083684]
[1764043786460,0.002,2924.4,2924.2,8.54717557]
[1764043786843,0.002,2924.4,2924.3,0.455]
[1764043787759,0.002,2924.4,2924.3,4.28012578]
[1764043789861,0.002,2924.4,2924.3,5.5153161]
[1764043790175,0.002,2924.4,2924.3,5.9704161]
[1764043790400,0.002,2924.4,2924.3,5.93621989]
[1764043791289,0.002,2924.4,2924.3,5.22181989]
[1764043791290,0.4772,2924.4,2924.3,5.22181989]
[1764043791578,0.9573,2924.4,2924.3,9.27598544]
[1764043791757,0.4772,2924.4,2924.3,9.27598544]
[1764043791958,0.002,2924.4,2924.3,9.05998544]
[1764043792291,0.002,2924.4,2924.3,9.27598544]
[1764043792591,0.002,2924.4,2924.3,9.73078544]
[1764043793061,0.002,2924.4,2924.3,9.51478544]
[1764043793382,0.002,2924.4,2924.3,9.73078544]
[1764043793956,0.002,2924.4,2924.3,10.20618544]
[1764043794181,0.6751,2925.2,2924.3,10.20618544]
[1764043794182,0.6684,2925.5,2924.4,1.13109811]
[1764043794383,0.4801,2925.4,2925.0,4.05416555]
[1764043794781,0.4752,2925.1,2925.0,4.05416555]
[1764043795184,0.4801,2925.4,2925.0,4.05416555]
[1764043795480,0.4752,2925.1,2924.5,0.621504]
[1764043795795,0.8288,2925.0,2924.7,6.8383082]
[1764043796555,0.4701,2925.3,2925.0,0.405504]
[1764043797690,0.4701,2925.3,2925.2,4.05416555]
[1764043797929,0.6584,2925.5,2925.3,3.4184528]
[1764043798433,0.4905,2925.4,2925.3,3.8239568]
[1764043798643,0.4701,2925.8,2925.3,6.8369056]
[1764043798796,0.4905,2925.4,2925.3,3.8239568]
[1764043799128,0.4905,2925.4,2925.2,3.41853434]
[1764043799335,0.4701,2925.6,2925.2,3.41853434]
[1764043799500,0.4905,2925.3,2925.2,3.41853434]
[1764043800009,0.4905,2925.3,2925.2,4.05416555]
[1764043800411,0.1836,2926.2,2925.3,0.405504]
[1764043800412,0.4701,2925.8,2925.3,0.405504]
[1764043800622,0.4701,2925.8,2925.5,4.04427355]
[1764043800859,0.4905,2925.2,2925.1,7.868458]
[1764043801214,0.9606,2925.2,2925.1,7.868458]
[1764043801523,0.9606,2925.2,2924.8,4.04427355]
[1764043801721,0.812,2925.1,2924.8,4.04427355]
[1764043801911,0.4891,2924.9,2924.8,4.04427355]
[1764043802091,0.4891,2924.9,2924.8,7.46331074]
[1764043802291,0.4701,2925.2,2924.9,0.405504]
[1764043802516,0.002,2925.3,2925.1,4.04427355]
[1764043802720,0.4721,2925.3,2925.1,4.04427355]
[1764043803017,0.4905,2925.2,2925.1,4.04427355]
[1764043803418,0.9606,2925.2,2924.9,4.04427355]
[1764043803621,0.3419,2925.0,2924.7,7.4633717]
[1764043803818,0.4701,2925.1,2924.9,4.04427355]
[1764043804121,0.4701,2925.1,2924.9,7.46317249]
[1764043804323,0.4905,2925.0,2924.9,7.46317249]
[1764043804705,0.9606,2925.0,2924.9,7.46317249]
[1764043804905,0.9606,2925.0,2924.6,0.216]
[1764043804906,0.9606,2925.0,2924.7,4.04427355]
[1764043805106,0.6599,2924.9,2924.7,4.04427355]
[1764043805308,0.4905,2924.8,2924.7,4.04427355]
[1764043806132,0.9606,2924.8,2924.7,7.46342765]
[1764043807002,0.9606,2924.8,2924.7,3.4191541]
[1764043809237,0.9606,2924.8,2924.6,7.46350013]
[1764043809533,0.812,2924.7,2924.6,8.18909424]
[1764043809827,0.812,2924.7,2924.6,4.14482069]
[1764043810225,0.812,2924.7,2924.3,0.001]
[1764043810530,0.4905,2924.4,2924.3,0.001]
[1764043810933,0.9606,2924.4,2924.3,0.001]
[1764043812535,0.4905,2924.4,2924.3,4.04527355]
[1764043812853,0.9606,2924.4,2924.3,4.04527355]
[1764043813058,0.4905,2924.4,2924.3,4.04527355]
[1764043814267,0.9606,2924.4,2924.3,4.04527355]
[1764043814433,0.9606,2924.4,2924.3,7.46489533]
[1764043815267,0.9606,2924.4,2924.3,3.42062178]
[1764043815879,0.4905,2924.4,2924.3,3.42062178]
[1764043816538,0.9606,2924.4,2924.3,3.42062178]
[1764043817052,0.9606,2924.4,2924.3,0.001]
[1764043818849,0.9606,2924.4,2924.3,4.04527355]
[1764043819378,0.9606,2924.4,2924.3,0.001]
[1764043819795,0.4905,2924.4,2924.3,4.04527355]
[1764043820364,0.9714,2924.4,2924.3,4.04527355]